bitfinex-derivatives/quotes_BTCF0:USTF0_20230402
["timestamp","ask_amount","ask_price","bid_price","bid_amount"]
[1680441360332,0.05,28168.0,28162.0,0.05]
[1680441360627,0.05,28168.0,28163.0,0.22185183]
[1680441360927,0.05,28168.0,28164.0,0.05]
[1680441361321,0.05,28168.0,28162.0,0.05]
[1680441361520,0.05,28168.0,28164.0,0.05]
[1680441362222,0.3007,28169.0,28162.0,0.05]
[1680441362423,0.05,28171.0,28164.0,0.3007]
[1680441362722,0.3007,28172.0,28165.0,0.05]
[1680441363027,0.00494204,28171.0,28170.0,0.3007]
[1680441363321,0.7006334,28181.0,28170.0,0.3007]
[1680441363527,0.7006334,28181.0,28171.0,0.37315586]
[1680441363722,0.05,28178.0,28170.0,0.67965813]
[1680441363921,0.05,28178.0,28170.0,0.3007]
[1680441364122,0.05,28178.0,28173.0,0.3007]
[1680441364430,0.05,28180.0,28176.0,0.3007]
[1680441364921,0.3007,28181.0,28177.0,0.3007]
[1680441365113,0.05,28179.0,28177.0,0.3007]
[1680441365520,0.05,28179.0,28177.0,0.3507]
[1680441365825,0.05,28179.0,28177.0,0.3007]
[1680441366020,0.05,28180.0,28178.0,0.353]
[1680441366326,0.3007,28193.0,28179.0,0.65733956]
[1680441366624,0.3007,28193.0,28186.0,0.3007]
[1680441367122,0.3007,28193.0,28187.0,0.00775333]
[1680441367327,0.05,28192.0,28187.0,0.00775333]
[1680441367921,0.05,28192.0,28187.0,0.05775333]
[1680441368628,0.05,28192.0,28187.0,0.00775333]
[1680441371127,0.05,28192.0,28189.0,0.3007]
[1680441372128,0.05,28194.0,28190.0,0.05]
[1680441372319,0.3007,28196.0,28190.0,0.05]
[1680441373530,0.05,28195.0,28190.0,0.05]
[1680441373830,0.3007,28196.0,28190.0,0.05]
[1680441374829,0.05,28197.0,28192.0,0.3007]
[1680441375026,0.05,28194.0,28192.0,0.3007]
[1680441375332,0.05,28195.0,28192.0,0.3007]
[1680441375929,0.05,28195.0,28193.0,0.40067664]
[1680441376527,0.05,28195.0,28193.0,0.45067664]
[1680441376923,0.3007,28199.0,28193.0,0.05]
[1680441377124,0.3007,28199.0,28193.0,0.3507]
[1680441378128,0.3007,28199.0,28194.0,0.38780182]
[1680441378431,0.3007,28199.0,28194.0,0.43780182]
[1680441378935,0.05,28201.0,28196.0,0.3007]
[1680441379231,0.05,28198.0,28196.0,0.3007]
[1680441380425,0.049667,28201.0,28197.0,0.40640185]
[1680441380829,0.3052,28203.0,28199.0,0.3007]
[1680441381028,0.3007,28206.0,28199.0,0.3007]
[1680441381429,0.05,28200.0,28199.0,0.3007]
[1680441381930,0.3007,28206.0,28199.0,0.67052752]
[1680441382732,0.3007,28206.0,28200.0,0.05]
[1680441382933,0.05,28205.0,28200.0,0.05]
[1680441383135,0.05,28205.0,28201.0,0.37086841]
[1680441384136,0.05,28205.0,28201.0,0.42086841]
[1680441384535,0.05,28207.0,28201.0,0.42086841]
[1680441384730,0.05,28207.0,28202.0,0.3007]
[1680441385531,0.05,28207.0,28202.0,0.3507]
[1680441385733,0.05,28210.0,28202.0,0.3507]
[1680441386229,0.05,28210.0,28203.0,0.05]
[1680441386637,0.05,28210.0,28204.0,0.37194247]
[1680441386839,0.05,28211.0,28204.0,0.37194247]
[1680441387034,0.05,28211.0,28205.0,0.05]
[1680441388739,0.05,28211.0,28204.0,0.37194247]
[1680441390140,0.05,28211.0,28205.0,0.3007]
[1680441390437,0.05,28211.0,28205.0,0.3507]
[1680441390638,0.05,28211.0,28206.0,0.05]
[1680441390840,0.05,28211.0,28205.0,0.3507]
[1680441391036,0.05,28211.0,28206.0,0.37697276]
[1680441391242,0.05,28211.0,28206.0,0.05]
[1680441391637,0.05,28211.0,28205.0,0.3007]
[1680441392638,0.6314,28212.0,28206.0,0.05]
[1680441393047,0.6314,28212.0,28206.0,0.45046058]
[1680441393245,0.3307,28212.0,28207.0,0.01574453]
[1680441393445,0.05,28214.0,28207.0,0.01574453]
[1680441393745,0.3007,28209.0,28207.0,0.01574453]
[1680441393948,0.3007,28208.0,28207.0,0.01574453]
[1680441394149,0.3505668,28208.0,28200.0,0.05]
[1680441394440,0.3007,28205.0,28201.0,0.0137069]
[1680441394647,0.05,28204.0,28201.0,0.0137069]
[1680441395245,0.05,28204.0,28200.0,0.05]
[1680441396039,0.3007,28205.0,28201.0,0.3777338]
[1680441396247,0.05,28207.0,28202.0,0.05]
[1680441396639,0.05,28207.0,28201.0,0.3777338]
[1680441397039,0.05,28207.0,28202.0,0.05]
[1680441398153,0.3007,28214.0,28205.0,0.3007]
[1680441398348,0.353,28213.0,28206.0,0.05]
[1680441398548,0.403,28213.0,28206.0,0.05]
[1680441398848,0.3007,28211.0,28205.0,0.3007]
[1680441399049,0.05,28210.0,28205.0,0.3007]
[1680441401348,0.3007,28214.0,28206.0,0.05]
[1680441401741,0.05,28213.0,28206.0,0.05]
[1680441402449,0.3007,28216.0,28209.0,0.3007]
[1680441402645,0.05,28215.0,28210.0,0.05]
[1680441402943,0.05,28215.0,28209.0,0.3507]
[1680441403143,0.05,28215.0,28209.0,0.3007]
[1680441403551,0.05,28215.0,28209.0,0.3507]
[1680441403844,0.05,28215.0,28203.0,0.3147]
[1680441403845,0.3007,28213.0,28204.0,0.3507]
[1680441404043,0.3007,28210.0,28204.0,0.3007]
[1680441404244,0.05,28209.0,28204.0,0.3507]
[1680441404548,0.05,28209.0,28205.0,0.05]
[1680441404944,0.05,28209.0,28204.0,0.3507]
[1680441405156,0.05,28209.0,28205.0,0.05]
[1680441405852,0.05,28212.0,28205.0,0.05]
[1680441406551,0.05,28212.0,28204.0,0.3507]
[1680441406955,0.05,28212.0,28205.0,0.05]
[1680441407254,0.05,28212.0,28207.0,0.3007]
[1680441407446,0.05,28212.0,28208.0,0.05]
[1680441407646,0.05,28212.0,28207.0,0.3007]
[1680441408254,0.05,28212.0,28208.0,0.01367541]
[1680441408454,0.05,28212.0,28208.0,0.06367541]
[1680441408652,0.05,28212.0,28208.0,0.01367541]
[1680441410048,0.05,28212.0,28208.0,0.06367541]
[1680441410250,0.05,28213.0,28208.0,0.06367541]
[1680441410846,0.05,28214.0,28208.0,0.06367541]
[1680441411262,0.05,28214.0,28208.0,0.01367541]
[1680441411556,0.05,28214.0,28208.0,0.06353315]
[1680441411950,0.05,28214.0,28210.0,0.3007]
[1680441412258,0.42584289,28215.0,28211.0,0.05]
[1680441412459,0.12514289,28214.0,28211.0,0.06300471]
[1680441413052,0.05,28214.0,28211.0,0.06300471]
[1680441413256,0.05,28214.0,28211.0,0.01300471]
[1680441413559,0.17514289,28214.0,28210.0,0.3007]
[1680441413953,0.3007,28212.0,28210.0,0.3007]
[1680441414150,0.05,28211.0,28207.0,0.3007]
[1680441414650,0.05,28213.0,28207.0,0.3007]
[1680441414957,0.05,28213.0,28208.0,0.05]
[1680441415454,0.05,28213.0,28210.0,0.3007]
[1680441415660,0.05,28214.0,28211.0,0.05]
[1680441416156,0.05,28214.0,28210.0,0.3007]
[1680441417553,0.17514289,28214.0,28210.0,0.3007]
[1680441418160,0.12514289,28214.0,28210.0,0.3007]
[1680441418564,0.17514289,28214.0,28210.0,0.3007]
[1680441419054,0.17514289,28214.0,28211.0,0.01246461]
[1680441419455,0.17514289,28214.0,28210.0,0.3007]
[1680441419956,0.12514289,28214.0,28211.0,0.05]
[1680441420154,0.42584289,28215.0,28211.0,0.05]
[1680441420662,0.12514289,28214.0,28211.0,0.05]
[1680441420856,0.17514289,28214.0,28211.0,0.05]
[1680441421063,0.17514289,28214.0,28210.0,0.3007]
[1680441421457,0.12514289,28214.0,28210.0,0.3007]
[1680441421863,0.17514289,28214.0,28210.0,0.3007]
[1680441422066,0.05,28213.0,28210.0,0.3007]
[1680441422460,0.17514289,28213.0,28210.0,0.3007]
[1680441422757,0.12514289,28213.0,28210.0,0.3007]
[1680441422965,0.05,28212.0,28210.0,0.3007]
[1680441423164,0.05,28212.0,28211.0,0.01237666]
[1680441423464,0.05,28212.0,28210.0,0.3007]
[1680441423669,0.17514289,28214.0,28210.0,0.3007]
[1680441424266,0.05,28213.0,28210.0,0.3007]
[1680441426962,0.05,28213.0,28210.0,0.6014]
[1680441427964,0.05,28213.0,28210.0,0.3007]
[1680441437975,0.05,28213.0,28211.0,0.01237092]
[1680441438371,0.05,28213.0,28210.0,0.3007]
[1680441439276,0.17660807,28213.0,28210.0,0.3007]
[1680441440370,0.6537,28212.0,28206.0,2.0007]
[1680441440570,0.403,28211.0,28206.0,2.0007]
[1680441440975,0.05,28210.0,28206.0,2.0007]
[1680441442881,0.05,28210.0,28206.0,0.3007]
[1680441443077,0.05,28210.0,28206.0,2.0007]
[1680441445081,0.6537,28209.0,28203.0,0.0631328]
[1680441445277,0.6537,28204.0,28199.0,0.0631328]
[1680441445477,0.6537,28204.0,28198.0,0.0631328]
[1680441445778,0.3007,28201.0,28197.0,0.3778328]
[1680441445978,0.3007,28201.0,28196.0,0.3007]
[1680441445979,0.3007,28201.0,28196.0,0.3638328]
[1680441446479,0.05,28200.0,28197.0,0.22164862]
[1680441446978,0.05,28200.0,28196.0,0.3638328]
[1680441446979,0.05,28200.0,28196.0,0.3007]
[1680441448379,0.05,28200.0,28195.0,1.7]
[1680441449779,0.3007,28198.0,28193.0,0.3007]
[1680441449978,0.3007,28198.0,28190.0,2.5627328]
[1680441449979,0.3007,28195.0,28190.0,2.5627328]
[1680441450170,0.3007,28195.0,28190.0,1.7631328]
[1680441450577,0.05,28194.0,28190.0,1.7631328]
[1680441450771,0.05,28194.0,28190.0,1.7]
[1680441453677,0.3007,28195.0,28190.0,1.7]
[1680441453881,0.05,28197.0,28191.0,0.05]
[1680441454182,0.3007,28192.0,28187.0,0.6066]
[1680441454479,0.3007,28192.0,28188.0,1.75]
[1680441454682,0.3007,28192.0,28189.0,0.05]
[1680441454881,0.3007,28195.0,28191.0,1.7]
[1680441455384,0.3007,28195.0,28192.0,0.05]
[1680441458780,0.3007,28195.0,28193.0,0.3007]
[1680441458986,0.00194691,28196.0,28193.0,0.3007]
[1680441459180,0.3007,28198.0,28194.0,0.05]
[1680441460082,0.3007,28198.0,28194.0,1.75]
[1680441460288,0.05,28201.0,28197.0,1.7]
[1680441460487,0.3007,28202.0,28197.0,1.7]
[1680441460690,0.3007,28202.0,28198.0,0.05207283]
[1680441461885,0.3007,28202.0,28199.0,0.3007]
[1680441462080,0.3007,28202.0,28200.0,0.05]
[1680441462481,0.3507,28207.0,28200.0,0.05]
[1680441462691,0.3007,28204.0,28200.0,0.05]
[1680441462886,0.3007,28204.0,28199.0,0.3507]
[1680441463186,0.3007,28204.0,28200.0,0.05]
[1680441463389,0.05,28203.0,28200.0,0.05]
[1680441464594,0.05,28203.0,28199.0,0.3507]
[1680441464892,0.3007,28204.0,28199.0,0.3507]
[1680441465197,0.05,28203.0,28199.0,0.3007]
[1680441465586,0.05,28203.0,28200.0,1.7]
[1680441465787,0.05,28203.0,28201.0,0.05]
[1680441466287,0.05,28203.0,28200.0,1.7]
[1680441466689,0.3007,28204.0,28200.0,1.7]
[1680441466887,0.05,28203.0,28200.0,1.7]
[1680441467894,0.05,28203.0,28201.0,0.00404384]
[1680441469092,0.0498668,28203.0,28201.0,0.00404384]
[1680441470690,0.4028668,28203.0,28201.0,0.00404384]
[1680441475599,0.4028668,28203.0,28200.0,1.7]
[1680441475795,0.3007,28201.0,28200.0,1.7]
[1680441476495,0.0498668,28203.0,28200.0,1.7]
[1680441476902,0.3507,28204.0,28200.0,1.7]
[1680441477301,0.05,28203.0,28200.0,1.7]
[1680441477704,0.3007,28204.0,28200.0,1.7]
[1680441480006,0.3007,28204.0,28201.0,0.05]
[1680441482202,0.3007,28210.0,28206.0,1.7]
[1680441482406,0.3007,28210.0,28207.0,0.05]
[1680441483005,0.05,28209.0,28208.0,0.00472299]
[1680441483206,0.05,28209.0,28206.0,1.7]
[1680441487913,0.3507,28210.0,28206.0,1.7]
[1680441488311,0.3007,28210.0,28206.0,1.7]
[1680441491309,0.05,28209.0,28206.0,1.7]
[1680441493018,0.3007,28210.0,28206.0,1.7]
[1680441495408,0.05,28212.0,28206.0,1.7]
[1680441496513,0.47730807,28213.0,28207.0,0.05]
[1680441496913,0.42730807,28213.0,28207.0,0.05]
[1680441497511,0.42730807,28213.0,28207.0,0.3507]
[1680441497712,0.3007,28213.0,28207.0,0.3507]
[1680441497912,0.3007,28213.0,28210.0,1.7]
[1680441499121,0.05,28212.0,28210.0,1.7]
[1680441499911,0.3007,28211.0,28208.0,0.00756268]
[1680441500113,0.3007,28210.0,28208.0,0.00756268]
[1680441500312,0.3507,28210.0,28208.0,0.00756268]
[1680441500814,0.05,28209.0,28208.0,0.00756268]
[1680441505016,0.3507,28210.0,28208.0,0.00756268]
[1680441505426,0.3007,28210.0,28208.0,0.00756268]
[1680441505820,0.3007,28211.0,28208.0,0.00756268]
[1680441506021,0.3007,28211.0,28210.0,1.7]
[1680441507322,0.05,28212.0,28210.0,1.7]
[1680441507519,0.05,28213.0,28210.0,1.7]
[1680441508117,0.05,28213.0,28210.0,2.0007]
[1680441509029,0.05,28214.0,28210.0,2.0007]
[1680441509525,0.42730807,28215.0,28210.0,2.0007]
[1680441509724,0.3007,28218.0,28214.0,2.0007]
[1680441510022,0.12660807,28220.0,28215.0,0.05]
[1680441510227,0.05,28219.0,28215.0,0.05]
[1680441510430,0.05,28219.0,28214.0,2.0007]
[1680441511020,0.759534,28226.0,28218.0,0.3007]
[1680441511224,0.403,28225.0,28221.0,0.3007]
[1680441511526,0.403,28224.0,28221.0,0.3007]
[1680441511722,0.403,28223.0,28221.0,0.3007]
[1680441512127,0.05,28222.0,28221.0,0.3007]
[1680441512920,0.05,28222.0,28221.0,0.31309028]
[1680441513527,0.05,28222.0,28221.0,0.01239028]
[1680441513930,0.05,28222.0,28218.0,0.3007]
[1680441514430,0.0499334,28222.0,28218.0,0.3007]
[1680441517326,0.05,28223.0,28218.0,0.3007]
[1680441517524,0.05,28224.0,28222.0,0.3007]
[1680441519225,0.403,28224.0,28222.0,0.3007]
[1680441520631,0.05,28224.0,28222.0,0.3007]
[1680441526034,0.17620794,28224.0,28222.0,0.3007]
[1680441527332,0.52921797,28224.0,28222.0,0.3007]
[1680441527636,0.17621797,28223.0,28218.0,0.3007]
[1680441527835,0.05,28222.0,28218.0,0.3007]
[1680441528035,0.05,28222.0,28219.0,0.01032003]
[1680441528832,0.17621797,28223.0,28219.0,0.01032003]
[1680441529034,0.05,28222.0,28219.0,0.01032003]
[1680441529236,0.05,28222.0,28221.0,0.3007]
[1680441529625,0.17621797,28223.0,28221.0,0.3007]
[1680441529936,0.12621797,28223.0,28221.0,0.3007]
[1680441530134,0.17621797,28224.0,28221.0,0.3007]
[1680441530331,0.12621797,28223.0,28221.0,0.3007]
[1680441530538,0.05,28222.0,28221.0,0.3007]
[1680441530938,0.12621797,28223.0,28221.0,0.3007]
[1680441532637,0.12621797,28225.0,28222.0,0.3507]
[1680441532833,0.12621797,28225.0,28223.0,0.05]
[1680441533832,0.12621797,28225.0,28222.0,0.3507]
[1680441534736,0.12621797,28225.0,28223.0,0.05]
[1680441535135,0.12621797,28225.0,28222.0,0.3507]
[1680441535330,0.12621797,28225.0,28222.0,0.3007]
[1680441536046,0.12621797,28225.0,28222.0,0.3507]
[1680441536237,0.12621797,28225.0,28222.0,0.3007]
[1680441536635,0.12621797,28225.0,28222.0,0.3507]
[1680441537041,0.12621797,28225.0,28222.0,0.3007]
[1680441537443,0.12621797,28226.0,28222.0,0.3007]
[1680441537637,0.17621797,28226.0,28225.0,0.3007]
[1680441539044,0.12621797,28226.0,28225.0,0.3007]
[1680441539243,0.17621797,28226.0,28225.0,0.3007]
[1680441539837,0.12621797,28226.0,28225.0,0.3007]
[1680441540039,0.12621797,28227.0,28225.0,0.3007]
[1680441540841,0.12621797,28226.0,28225.0,0.3007]
[1680441542442,0.12621797,28227.0,28225.0,0.3007]
[1680441542947,0.05,28226.0,28225.0,0.3007]
[1680441544137,0.0498668,28226.0,28225.0,0.3007]
[1680441547955,0.17621797,28227.0,28225.0,0.3007]
[1680441548152,0.12621797,28227.0,28226.0,0.3007]
[1680441550650,0.21831192,28228.0,28226.0,0.3007]
[1680441550848,0.57131192,28228.0,28226.0,0.3007]
[1680441551153,0.16831192,28227.0,28226.0,0.3007]
[1680441551356,0.05,28227.0,28226.0,0.3007]
[1680441551956,0.21831192,28227.0,28226.0,0.3007]
[1680441552754,0.57131192,28227.0,28221.0,1.7]
[1680441552952,0.47949609,28223.0,28216.0,2.0007]
[1680441553151,0.3007,28220.0,28216.0,2.0007]
[1680441553657,0.05,28219.0,28216.0,2.0007]
[1680441553857,0.05,28219.0,28216.0,1.7]
[1680441554356,0.05,28219.0,28217.0,1.7]
[1680441555053,0.05,28219.0,28217.0,2.0007]
[1680441555459,0.17649609,28219.0,28217.0,2.0007]
[1680441557346,0.17649609,28219.0,28217.0,1.7]
[1680441557857,0.57166145,28219.0,28217.0,1.7]
[1680441558157,0.57166145,28219.0,28218.0,0.00562244]
[1680441559460,0.78204957,28219.0,28218.0,0.00562244]
[1680441559652,0.61338812,28219.0,28218.0,0.00562244]
[1680441559853,0.61338812,28219.0,28214.0,1.7]
[1680441560053,0.42726225,28216.0,28214.0,1.7]
[1680441560553,0.05,28215.0,28214.0,1.7]
[1680441562364,0.3007,28216.0,28214.0,1.7]
[1680441563765,0.17656225,28217.0,28214.0,1.7]
[1680441564554,0.12656225,28217.0,28214.0,1.7]
[1680441564751,0.17656225,28218.0,28214.0,1.7]
[1680441565053,0.12656225,28218.0,28214.0,1.7]
[1680441565762,0.12656225,28218.0,28215.0,0.05]
[1680441566062,0.12656225,28219.0,28215.0,0.05]
[1680441567166,0.12656225,28220.0,28218.0,0.05]
[1680441567756,0.12656225,28220.0,28217.0,1.7]
[1680441571862,0.05,28219.0,28217.0,1.7]
[1680441573263,0.05,28219.0,28218.0,0.00221782]
[1680441574775,0.3507,28220.0,28218.0,0.00221782]
[1680441575271,0.05,28219.0,28218.0,0.00221782]
[1680441576269,0.3507,28220.0,28218.0,0.00221782]
[1680441576470,0.47726225,28220.0,28218.0,0.00221782]
[1680441576872,0.42726225,28220.0,28218.0,0.00221782]
[1680441577067,0.05,28219.0,28218.0,0.00221782]
[1680441578071,0.42726225,28220.0,28218.0,0.00221782]
[1680441578668,0.3007,28220.0,28218.0,0.00221782]
[1680441579478,0.42726225,28220.0,28218.0,0.00221782]
[1680441579776,0.3007,28220.0,28218.0,0.00221782]
[1680441583284,0.42726225,28220.0,28218.0,0.00221782]
[1680441583585,0.3007,28220.0,28218.0,0.00221782]
[1680441583876,0.12656225,28221.0,28219.0,0.3007]
[1680441588192,0.12656225,28221.0,28220.0,0.00254174]
[1680441588583,0.12656225,28221.0,28219.0,0.3007]
[1680441590591,0.12656225,28221.0,28220.0,0.05]
[1680441590783,0.12656225,28222.0,28220.0,1.75]
[1680441591188,0.12656225,28222.0,28220.0,1.7]
[1680441598385,0.12656225,28221.0,28220.0,1.7]
[1680441599695,0.12656225,28222.0,28220.0,1.7]
[1680441600002,0.12656225,28222.0,28220.0,1.69982643]
[1680441603092,0.12656225,28223.0,28220.0,1.69982643]
[1680441603300,0.12656225,28223.0,28222.0,0.3007]
[1680441605404,0.16874967,28224.0,28223.0,1.69982643]
[1680441605805,0.21874967,28224.0,28223.0,1.69982643]
[1680441606005,0.21874967,28224.0,28223.0,1.70533653]
[1680441607405,0.05,28224.0,28223.0,1.70533653]
[1680441611598,0.26038812,28224.0,28223.0,1.70533653]
[1680441612504,0.61338812,28224.0,28219.0,0.3007]
[1680441612709,0.12670669,28221.0,28220.0,0.00482962]
[1680441612910,0.05,28221.0,28220.0,0.00482962]
[1680441613212,0.05,28220.0,28217.0,0.3007]
[1680441613404,0.12670689,28219.0,28218.0,1.41131633]
[1680441613605,0.05,28218.0,28215.0,1.41131633]
[1680441613809,0.3007,28216.0,28215.0,1.41131633]
[1680441614012,0.47739948,28216.0,28215.0,1.41131633]
[1680441614810,0.3507,28216.0,28215.0,1.41131633]
[1680441615007,0.47738978,28216.0,28215.0,1.41131633]
[1680441618520,0.83038978,28216.0,28215.0,1.38131633]
[1680441618816,0.83038978,28216.0,28215.0,1.28731633]
[1680441619017,0.47738978,28216.0,28215.0,1.12831633]
[1680441619617,0.47738978,28216.0,28215.0,0.87999782]
[1680441620116,0.3007,28216.0,28215.0,0.87999782]
[1680441620313,0.3507,28216.0,28215.0,0.87999782]
[1680441620511,0.47738978,28216.0,28215.0,0.87999782]
[1680441620714,0.17668978,28217.0,28215.0,0.87999782]
[1680441621118,0.3007,28216.0,28215.0,0.87999782]
[1680441621310,0.3507,28216.0,28215.0,0.87999782]
[1680441622318,0.3007,28216.0,28215.0,0.87999782]
[1680441623219,0.3507,28216.0,28215.0,0.87999782]
[1680441623622,0.3007,28216.0,28215.0,0.87999782]
[1680441624221,0.3507,28216.0,28215.0,0.87999782]
[1680441625222,0.3007,28216.0,28215.0,0.87999782]
[1680441625720,0.05,28217.0,28215.0,0.87999782]
[1680441625920,0.17668978,28218.0,28215.0,0.87999782]
[1680441626617,0.12668978,28218.0,28215.0,0.87999782]
[1680441626817,0.17668978,28218.0,28215.0,0.87999782]
[1680441627926,0.05,28217.0,28215.0,0.87999782]
[1680441628322,0.17668978,28218.0,28215.0,0.87999782]
[1680441628523,0.12668978,28218.0,28215.0,0.87999782]
[1680441630723,0.12668978,28218.0,28216.0,0.05]
[1680441630922,0.12668978,28219.0,28218.0,0.87999782]
[1680441631224,0.05,28220.0,28218.0,0.87999782]
[1680441631429,0.05,28220.0,28219.0,0.3007]
[1680441633230,0.17668978,28222.0,28221.0,0.87999782]
[1680441636724,0.12668978,28222.0,28221.0,0.87999782]
[1680441637128,0.12668978,28223.0,28221.0,0.88352069]
[1680441637427,0.12668978,28223.0,28222.0,0.3007]
[1680441644033,0.17668978,28224.0,28222.0,0.3007]
[1680441645535,0.17668978,28224.0,28223.0,0.00458745]
[1680441646127,0.05,28224.0,28223.0,0.00458745]
[1680441646626,0.21894283,28224.0,28221.0,0.87999782]
[1680441646832,0.42725863,28222.0,28221.0,0.87999782]
[1680441647029,0.3007,28222.0,28221.0,0.87999782]
[1680441647224,0.46964283,28222.0,28221.0,0.87999782]
[1680441647635,0.51964283,28222.0,28221.0,0.87999782]
[1680441650833,0.3507,28222.0,28221.0,0.87999782]
[1680441652338,0.35393559,28222.0,28221.0,0.87999782]
[1680441653333,0.56432371,28222.0,28221.0,0.87999782]
[1680441654436,0.56648029,28222.0,28221.0,0.87999782]
[1680441657641,2.57648029,28222.0,28221.0,0.87999782]
[1680441660541,2.57648029,28222.0,28221.0,0.87968628]
[1680441660943,2.57648029,28222.0,28221.0,0.87929263]
[1680441661243,2.57648029,28222.0,28221.0,0.8786885]
[1680441661543,2.57648029,28222.0,28221.0,0.87835369]
[1680441661736,2.57648029,28222.0,28221.0,0.87803842]
[1680441662235,2.57648029,28222.0,28221.0,0.87769592]
[1680441662430,2.57648029,28222.0,28221.0,0.87734349]
[1680441662638,2.57648029,28222.0,28221.0,0.87703587]
[1680441662845,2.57648029,28222.0,28221.0,0.876713]
[1680441663143,2.57648029,28222.0,28221.0,0.87641639]
[1680441663342,2.57648029,28222.0,28221.0,0.87613188]
[1680441663545,2.57648029,28222.0,28221.0,0.87579045]
[1680441663735,2.57648029,28222.0,28221.0,0.87552625]
[1680441664246,2.57648029,28222.0,28221.0,0.87492757]
[1680441664545,2.57648029,28222.0,28221.0,0.87462992]
[1680441664745,2.57648029,28222.0,28221.0,0.87433222]
[1680441665048,2.57648029,28222.0,28221.0,0.87404389]
[1680441665346,2.57648029,28222.0,28221.0,0.87370544]
[1680441665544,2.57648029,28222.0,28221.0,0.87343344]
[1680441665845,2.57648029,28222.0,28221.0,0.87312111]
[1680441666049,2.57490961,28222.0,28221.0,0.8729157]
[1680441666235,2.57490961,28222.0,28221.0,0.87269174]
[1680441666547,2.57490961,28222.0,28221.0,0.87245718]
[1680441666750,2.57490961,28222.0,28221.0,0.87222444]
[1680441667246,2.57490961,28222.0,28221.0,0.87175791]
[1680441667643,2.57490961,28222.0,28221.0,0.8715032]
[1680441667848,2.57490961,28222.0,28221.0,0.8712688]
[1680441668047,2.57490961,28222.0,28221.0,0.87104796]
[1680441668250,2.57490961,28222.0,28221.0,0.87085465]
[1680441668649,2.57490961,28222.0,28221.0,0.87063345]
[1680441668849,2.57490961,28222.0,28221.0,0.87042099]
[1680441669051,2.57490961,28222.0,28221.0,0.87020403]
[1680441669248,2.57490961,28222.0,28221.0,0.86998703]
[1680441669547,2.57490961,28222.0,28221.0,0.8697743]
[1680441669848,2.57490961,28222.0,28221.0,0.86955385]
[1680441670051,2.57490961,28222.0,28221.0,0.86935037]
[1680441670349,2.57490961,28222.0,28221.0,0.86910568]
[1680441670549,2.57490961,28222.0,28221.0,0.86889975]
[1680441670848,2.57490961,28222.0,28221.0,0.86869212]
[1680441671048,2.57490961,28222.0,28221.0,0.86849674]
[1680441671249,2.36452149,28222.0,28221.0,0.86831904]
[1680441674048,2.71752149,28222.0,28221.0,0.81831904]
[1680441674246,0.06295259,28221.0,28212.0,0.3021]
[1680441674445,0.42743049,28217.0,28212.0,0.3021]
[1680441674844,0.05,28216.0,28212.0,0.3021]
[1680441675145,0.17673049,28216.0,28212.0,0.3021]
[1680441675843,0.00532105,28215.0,28212.0,0.3021]
[1680441686146,0.00532105,28215.0,28214.0,0.3007]
[1680441688357,0.00532105,28215.0,28212.0,0.3021]
[1680441688563,0.3007,28214.0,28212.0,0.3021]
[1680441688861,0.05,28213.0,28212.0,0.3021]
[1680441689155,0.05,28213.0,28210.0,0.4]
[1680441690561,0.00596485,28212.0,28210.0,0.4]
[1680441690964,0.00596485,28212.0,28207.0,0.7007]
[1680441696073,0.00596485,28212.0,28207.0,0.3007]
[1680441698573,0.3007,28211.0,28205.0,1.1003]
[1680441698776,0.6014,28208.0,28204.0,0.3156]
[1680441698976,0.3007,28205.0,28204.0,0.3156]
[1680441699175,0.00017144,28204.0,28201.0,0.3007]
[1680441700279,0.05017144,28204.0,28199.0,0.6289]
[1680441700475,0.05017144,28204.0,28199.0,0.3007]
[1680441700875,0.05017144,28204.0,28196.0,0.3007]
[1680441701280,0.3007,28202.0,28196.0,0.3007]
[1680441701771,0.05017144,28204.0,28196.0,0.3007]
[1680441701972,0.05017144,28204.0,28199.0,0.3007]
[1680441702172,0.05017144,28204.0,28199.0,0.6014]
[1680441702376,0.05017144,28204.0,28202.0,0.3007]
[1680441702572,0.42743049,28208.0,28202.0,0.3007]
[1680441702573,0.3007,28208.0,28202.0,0.3007]
[1680441702882,0.05,28203.0,28202.0,0.3007]
[1680441703986,0.068,28203.0,28202.0,0.3027]
[1680441705083,0.018,28203.0,28202.0,0.3027]
[1680441705681,0.02757455,28203.0,28202.0,0.3027]
[1680441709383,0.02757455,28203.0,28202.0,0.002]
[1680441720990,0.02757455,28203.0,28202.0,0.00142313]
[1680441721287,0.02757455,28203.0,28202.0,0.00042411]
[1680441721689,0.02757455,28203.0,28197.0,0.3007]
[1680441721888,0.018,28203.0,28197.0,0.3007]
[1680441723185,0.02,28203.0,28197.0,0.6034]
[1680441724980,0.02,28203.0,28200.0,0.3007]
[1680441726381,0.02,28203.0,28200.0,0.6014]
[1680441727183,0.019,28203.0,28200.0,0.6034]
[1680441728393,0.019,28203.0,28201.0,0.05]
[1680441728587,0.00713446,28202.0,28201.0,0.05]
[1680441728788,0.00770598,28203.0,28201.0,0.05]
[1680441728987,2.01,28209.0,28201.0,0.05]
[1680441729195,2.01,28209.0,28207.0,0.3007]
[1680441730190,0.05,28208.0,28207.0,0.3007]
[1680441730589,0.05,28208.0,28207.0,0.3027]
[1680441730996,0.002,28209.0,28207.0,0.3027]
[1680441731295,0.12673049,28215.0,28208.0,0.3007]
[1680441731495,0.16897399,28216.0,28212.0,0.3007]
[1680441731496,2.01,28214.0,28212.0,0.3007]
[1680441731885,2.06,28214.0,28212.0,0.3007]